bitfinex/quotes_BTCUSD_20220105
["timestamp","ask_amount","ask_price","bid_price","bid_amount"]
[1641357432973,0.355039,46392.0,46391.0,0.05]
[1641357434373,0.355039,46392.0,46391.0,0.051]
[1641357434675,0.46987083,46392.0,46391.0,0.051]
[1641357434880,0.51987083,46392.0,46391.0,0.051]
[1641357435922,0.46287083,46392.0,46383.0,0.00483]
[1641357436223,0.107836,46388.0,46383.0,0.00033]
[1641357436425,0.2345497,46385.0,46384.0,0.355039]
[1641357437222,0.05391122,46392.0,46384.0,0.355039]
[1641357437723,0.0048249,46385.0,46384.0,0.355039]
[1641357438524,0.33177177,46385.0,46384.0,0.355039]
[1641357438926,0.33177177,46385.0,46383.0,0.00033]
[1641357439172,0.33177177,46385.0,46384.0,0.355039]
[1641357439372,0.0048249,46385.0,46384.0,0.355039]
[1641357439773,0.0048249,46385.0,46384.0,0.57546965]
[1641357440776,0.0048249,46385.0,46384.0,0.355039]
[1641357441673,0.0048249,46385.0,46384.0,0.57391275]
[1641357444923,0.0048249,46385.0,46384.0,0.355039]
[1641357445827,0.0048249,46385.0,46383.0,0.00033]
[1641357446225,0.05874619,46385.0,46383.0,0.00033]
[1641357446672,0.26208224,46384.0,46383.0,0.00033]
[1641357447477,0.61712124,46384.0,46383.0,0.00033]
[1641357448775,0.62612124,46384.0,46383.0,0.00033]
[1641357449975,0.61712124,46384.0,46383.0,0.00033]
[1641357450625,0.355039,46384.0,46383.0,0.00033]
[1641357450822,0.009,46384.0,46383.0,0.00033]
[1641357452624,0.0048249,46385.0,46383.0,0.00033]
[1641357452823,0.006,46384.0,46383.0,0.05233]
[1641357454074,0.0587419,46385.0,46383.0,0.00033]
[1641357454475,0.0048249,46385.0,46383.0,0.00033]
[1641357455675,0.0587409,46385.0,46383.0,0.00033]
[1641357456876,0.0657409,46385.0,46383.0,0.00033]
[1641357458131,0.0587409,46385.0,46383.0,0.00033]
[1641357458537,0.0048249,46385.0,46383.0,0.00033]
[1641357460737,0.0587409,46385.0,46383.0,0.00033]
[1641357462077,0.11265856,46385.0,46383.0,0.00033]
[1641357462880,0.11965856,46385.0,46383.0,0.00033]
[1641357463981,0.11265856,46385.0,46383.0,0.00033]
[1641357464782,0.11865856,46385.0,46383.0,0.00033]
[1641357464982,0.355039,46384.0,46383.0,0.00033]
[1641357465423,0.11865856,46385.0,46383.0,0.00033]
[1641357465627,0.355039,46384.0,46383.0,0.00033]
[1641357466528,0.25871056,46381.0,46380.0,0.00021]
[1641357466926,0.053921,46382.0,46380.0,0.00021]
[1641357467327,0.006,46384.0,46380.0,0.00021]
[1641357467726,0.00482525,46382.0,46380.0,0.00021]
[1641357467927,0.4076295,46382.0,46380.0,0.00021]
[1641357468227,0.3537105,46382.0,46380.0,0.00021]
[1641357469371,0.3537105,46382.0,46379.0,0.00024]
[1641357469572,0.3537105,46382.0,46378.0,0.0014326]
[1641357469973,0.3537105,46382.0,46378.0,0.0011326]
[1641357470174,0.3537105,46382.0,46378.0,0.0008326]
[1641357470175,0.10785149,46380.0,46378.0,0.0008326]
[1641357470772,0.053926,46380.0,46378.0,0.0008326]
[1641357471976,0.10784965,46380.0,46378.0,0.0008326]
[1641357472822,0.053926,46380.0,46378.0,0.0008326]
[1641357473424,0.3537105,46382.0,46378.0,0.0008326]
[1641357473425,0.4076305,46382.0,46378.0,0.0008326]
[1641357473625,0.3537105,46382.0,46378.0,0.0008326]
[1641357476128,0.31897155,46379.0,46378.0,0.0008326]
[1641357476980,0.32397155,46379.0,46378.0,0.0008326]
[1641357477179,0.37789761,46379.0,46378.0,0.0008326]
[1641357477878,0.6153212,46379.0,46378.0,0.0008326]
[1641357478077,0.6585212,46379.0,46378.0,0.0008326]
[1641357478277,0.42109761,46379.0,46378.0,0.0008326]
[1641357478879,0.78213661,46379.0,46378.0,0.0008326]
[1641357479078,0.78696209,46379.0,46378.0,0.0008326]
[1641357480176,0.78096209,46379.0,46378.0,0.0008326]
[1641357480826,0.78796209,46379.0,46378.0,0.0008326]
[1641357482228,0.78096209,46379.0,46378.0,0.0008326]
[1641357482430,0.10695154,46379.0,46378.0,0.0008326]
[1641357482632,0.05302548,46379.0,46378.0,0.0008326]
[1641357482829,0.00482548,46379.0,46378.0,0.0008326]
[1641357484175,0.00482548,46379.0,46378.0,0.3558716]
[1641357484579,0.00482548,46379.0,46378.0,0.57909225]
[1641357484978,0.00482548,46379.0,46378.0,0.62909225]
[1641357485178,0.01239898,46388.0,46378.0,0.40707708]
[1641357485779,0.01239898,46388.0,46383.0,0.053909]
[1641357485979,0.41318876,46384.0,46383.0,0.053909]
[1641357486379,0.41318876,46384.0,46379.0,0.3045]
[1641357486579,0.41318876,46384.0,46378.0,0.00203808]
[1641357486978,0.41318876,46384.0,46379.0,0.052]
[1641357487182,0.41318876,46384.0,46379.0,0.105912]
[1641357487379,0.41318876,46384.0,46380.0,0.21695539]
[1641357487679,0.41318876,46384.0,46381.0,0.053911]
[1641357488126,0.41318876,46384.0,46380.0,0.21695539]
[1641357488528,0.41318876,46384.0,46380.0,0.23900441]
[1641357488927,0.41318876,46384.0,46380.0,0.30700441]
[1641357490126,0.41318876,46384.0,46380.0,0.23900441]
[1641357490527,0.41318876,46384.0,46380.0,0.28791741]
[1641357490727,0.41318876,46384.0,46381.0,0.053911]
[1641357491128,0.41318876,46384.0,46381.0,0.27653023]
[1641357491971,0.41318876,46384.0,46381.0,0.22222167]
[1641357492975,0.41318876,46384.0,46381.0,0.28822167]
[1641357494178,0.41318876,46384.0,46381.0,0.22222167]
[1641357495079,0.41318876,46384.0,46381.0,0.28322167]
[1641357496321,0.41318876,46384.0,46381.0,0.22222167]
[1641357497122,0.41318876,46384.0,46381.0,0.28422167]
[1641357498324,0.41318876,46384.0,46382.0,0.355039]
[1641357498523,0.41318876,46384.0,46383.0,0.76475928]
[1641357498723,0.41318876,46384.0,46383.0,0.95705128]
[1641357498924,0.41318876,46384.0,46383.0,0.99805128]
[1641357499179,0.41318876,46384.0,46383.0,0.45805128]
[1641357500187,0.31339997,46390.0,46383.0,0.45805128]
[1641357500390,0.11251574,46396.0,46384.0,0.46410158]
[1641357500391,0.0047,46396.0,46384.0,0.46410158]
[1641357500786,0.0047,46396.0,46384.0,0.77640158]
[1641357500982,0.0047,46396.0,46384.0,0.80240158]
[1641357501183,0.33759545,46396.0,46388.0,0.053904]
[1641357501388,0.33287708,46390.0,46389.0,0.23948401]
[1641357501785,0.33287708,46390.0,46385.0,0.24324801]
[1641357502384,0.38678808,46390.0,46385.0,0.24324801]
[1641357502836,0.38678808,46390.0,46384.0,0.31357358]
[1641357503033,0.38678808,46390.0,46385.0,0.087]
[1641357503232,0.38678808,46390.0,46385.0,0.30945699]
[1641357503433,0.38678808,46390.0,46386.0,0.22605231]
[1641357503633,0.33287708,46390.0,46386.0,0.22605231]
[1641357505035,0.33287708,46390.0,46386.0,0.26605231]
[1641357505234,0.38678708,46390.0,46386.0,0.26605231]
[1641357505636,0.39161162,46390.0,46386.0,0.26605231]
[1641357506236,0.39161162,46390.0,46386.0,0.22605231]
[1641357507082,0.39161162,46390.0,46386.0,0.26505231]
[1641357507485,0.00482454,46390.0,46386.0,0.26505231]
[1641357507886,0.053909,46392.0,46386.0,0.26505231]
[1641357507887,0.00373354,46392.0,46386.0,0.26505231]
[1641357508091,0.00373354,46392.0,46386.0,0.039]
[1641357508385,0.00373354,46392.0,46384.0,0.516207]
[1641357508586,0.00373354,46392.0,46385.0,0.355039]
[1641357508785,0.00373354,46392.0,46386.0,0.21993162]
[1641357511032,0.00373354,46392.0,46386.0,0.25493162]
[1641357511230,0.00373354,46392.0,46386.0,0.035]
[1641357512834,0.25736902,46393.0,46385.0,0.22943939]
[1641357513033,0.25736902,46393.0,46386.0,0.046]
[1641357513237,0.25236902,46393.0,46386.0,0.046]
[1641357514080,0.30627702,46393.0,46386.0,0.046]
[1641357514277,0.30627702,46393.0,46385.0,0.22359672]
[1641357514477,0.30627702,46393.0,46385.0,0.21865773]
[1641357514677,0.30627702,46393.0,46385.0,0.24950824]
[1641357514678,0.053908,46393.0,46385.0,0.24950824]
[1641357514882,0.36646321,46395.0,46385.0,0.24950824]
[1641357515079,0.36646321,46395.0,46385.0,0.054]
[1641357515279,0.42036821,46395.0,46385.0,0.107906]
[1641357516280,0.42036821,46395.0,46385.0,0.30341424]
[1641357516480,0.42036821,46395.0,46385.0,0.35732024]
[1641357517080,0.42036821,46395.0,46385.0,0.39232024]
[1641357517833,0.42036821,46395.0,46385.0,0.142812]
[1641357518032,0.42036821,46395.0,46385.0,0.035]
[1641357518437,0.42036821,46395.0,46384.0,0.4623]
[1641357519036,0.52036821,46395.0,46384.0,0.4943]
[1641357520236,0.52036821,46395.0,46385.0,0.22019203]
[1641357520439,0.42036821,46395.0,46385.0,0.22019203]
[1641357520637,0.42036821,46395.0,46385.0,0.22147696]
[1641357520638,0.36646321,46395.0,46385.0,0.22147696]
[1641357520837,0.36646321,46395.0,46386.0,0.355039]
[1641357521235,0.36646321,46395.0,46385.0,0.02628493]
[1641357521437,0.28056356,46393.0,46385.0,0.08019193]
[1641357521682,0.24347754,46394.0,46385.0,0.02628493]
[1641357522284,0.24347754,46394.0,46385.0,0.00128493]
[1641357522681,0.053912,46390.0,46385.0,0.22357317]
[1641357522882,0.053912,46390.0,46386.0,0.355039]
[1641357523481,0.24347754,46394.0,46386.0,0.355039]
[1641357523686,0.05391,46391.0,46385.0,0.32256376]
[1641357523883,0.05391,46391.0,46386.0,0.355039]
[1641357525082,0.05391,46391.0,46386.0,0.417039]
[1641357526330,0.05391,46391.0,46386.0,0.355039]
[1641357527129,0.05391,46391.0,46386.0,0.454039]
[1641357528332,0.05391,46391.0,46386.0,0.355039]
[1641357529178,0.29420588,46387.0,46386.0,0.417039]
[1641357529379,0.29420588,46387.0,46386.0,0.062]
[1641357530178,0.34812088,46387.0,46386.0,0.062]
[1641357530381,0.29221878,46382.0,46380.0,0.22]
[1641357530682,0.53569981,46382.0,46381.0,0.01239874]
[1641357530886,0.60801981,46382.0,46381.0,0.01239874]
[1641357531078,0.96305881,46382.0,46381.0,0.07039874]
[1641357531484,1.07091081,46382.0,46381.0,0.07039874]
[1641357531679,1.35882333,46382.0,46381.0,0.07039874]
[1641357532278,1.35882333,46382.0,46380.0,0.22]
[1641357532480,0.7603033,46382.0,46380.0,0.22]
[1641357533131,0.8033033,46382.0,46380.0,0.223]
[1641357533333,0.37718143,46381.0,46380.0,0.223]
[1641357534431,0.37718143,46381.0,46380.0,0.22]
[1641357534633,0.43110443,46381.0,46380.0,0.22]
[1641357534934,0.37718143,46381.0,46380.0,0.22]
[1641357535132,0.42018143,46381.0,46380.0,0.225]
[1641357536335,0.37718143,46381.0,46380.0,0.22]
[1641357537185,0.42318143,46381.0,46380.0,0.225]
[1641357537986,0.77822043,46381.0,46380.0,0.225]
[1641357538587,0.73222043,46381.0,46380.0,0.22]
[1641357538785,0.37718143,46381.0,46380.0,0.22]
[1641357539187,0.42218143,46381.0,46380.0,0.224]
[1641357540530,0.37718143,46381.0,46380.0,0.22]
[1641357541129,0.42318143,46381.0,46380.0,0.225]
[1641357542532,0.37718143,46381.0,46380.0,0.22]
[1641357543132,0.41518143,46381.0,46380.0,0.228]
[1641357544378,0.37718143,46381.0,46380.0,0.22]
[1641357545179,0.37718143,46381.0,46380.0,0.236]
[1641357546482,0.37718143,46381.0,46380.0,0.22]
[1641357547283,0.41518143,46381.0,46380.0,0.23]
[1641357547844,0.038,46381.0,46380.0,0.23]
[1641357548444,0.23441316,46385.0,46380.0,0.22]
[1641357548844,0.355039,46384.0,46380.0,0.22]
[1641357549244,0.053919,46382.0,46380.0,0.26]
[1641357549445,0.36586427,46381.0,46380.0,0.26]
[1641357550544,0.36586427,46381.0,46380.0,0.22]
[1641357551345,0.36586427,46381.0,46380.0,0.263]
[1641357551346,0.37386427,46381.0,46380.0,0.263]
[1641357552574,0.36586427,46381.0,46380.0,0.22]
[1641357553177,0.37386427,46381.0,46380.0,0.264]
[1641357553375,0.34886427,46381.0,46380.0,0.264]
[1641357554576,0.34086427,46381.0,46380.0,0.22]
[1641357555177,0.34086427,46381.0,46380.0,0.264]
[1641357555178,0.34886427,46381.0,46380.0,0.264]
[1641357556534,0.34086427,46381.0,46380.0,0.22]
[1641357557231,0.34886427,46381.0,46380.0,0.266]
[1641357558133,0.93788589,46381.0,46380.0,0.266]
[1641357558532,0.92988589,46381.0,46380.0,0.22]
[1641357559182,0.95688589,46381.0,46380.0,0.222]
[1641357559581,1.01349589,46381.0,46380.0,0.222]
[1641357559780,0.77951327,46381.0,46380.0,0.222]
[1641357559983,0.82771327,46381.0,46380.0,0.222]
[1641357560580,0.80071327,46381.0,46380.0,0.22]
[1641357561180,0.82171327,46381.0,46380.0,0.22]
[1641357561581,0.92171327,46381.0,46380.0,0.22]
[1641357561780,1.17992102,46381.0,46380.0,0.22]
[1641357562381,1.22992102,46381.0,46380.0,0.22]
[1641357562586,1.20892102,46381.0,46380.0,0.22]
[1641357562829,1.20892102,46381.0,46380.0,0.215]
[1641357563030,1.20892102,46381.0,46380.0,0.20417994]
[1641357563229,1.23192102,46381.0,46380.0,0.20417994]
[1641357564429,1.20892102,46381.0,46380.0,0.20417994]
[1641357564830,0.95071327,46381.0,46380.0,0.20417994]
[1641357565234,0.92471327,46381.0,46380.0,0.20417994]
[1641357565429,0.97471327,46381.0,46380.0,0.20417994]
[1641357566030,0.97471327,46381.0,46380.0,0.19917994]
[1641357566583,0.95071327,46381.0,46380.0,0.19917994]
[1641357567281,0.97271327,46381.0,46380.0,0.19917994]
[1641357567682,1.20664406,46381.0,46380.0,0.19917994]
[1641357568084,0.97271327,46381.0,46380.0,0.19917994]
[1641357568482,0.80071327,46381.0,46380.0,0.19917994]
[1641357568681,0.74410327,46381.0,46380.0,0.19917994]
[1641357569284,0.80810327,46381.0,46380.0,0.19917994]
[1641357569684,0.85810327,46381.0,46380.0,0.19917994]
[1641357570332,0.80810327,46381.0,46380.0,0.19917994]
[1641357570537,0.85810327,46381.0,46380.0,0.19917994]
[1641357570733,0.79410327,46381.0,46380.0,0.19917994]
[1641357570934,0.74590327,46381.0,46380.0,0.19917994]
[1641357571338,0.81490327,46381.0,46380.0,0.19917994]
[1641357574079,1.1450872,46381.0,46380.0,0.19917994]
[1641357574281,1.14540328,46381.0,46380.0,0.19917994]
[1641357574481,1.07740328,46381.0,46380.0,0.19917994]
[1641357575081,0.84590327,46381.0,46380.0,0.19917994]
[1641357575285,0.425039,46381.0,46380.0,0.19917994]
[1641357575482,0.07,46381.0,46380.0,0.19917994]
[1641357575684,0.02,46381.0,46380.0,0.19917994]
[1641357576481,0.44398752,46381.0,46380.0,0.19917994]
[1641357577281,0.47698752,46381.0,46380.0,0.20217994]
[1641357578836,0.44398752,46381.0,46380.0,0.19917994]
[1641357579030,0.49790952,46381.0,46380.0,0.19917994]
[1641357579230,0.85294852,46381.0,46380.0,0.20117994]
[1641357579430,0.93894852,46381.0,46380.0,0.20117994]
[1641357580630,0.90294852,46381.0,46380.0,0.19917994]
[1641357581233,0.85294852,46381.0,46380.0,0.19917994]
[1641357581432,0.089922,46381.0,46380.0,0.20117994]
[1641357582683,0.053922,46381.0,46380.0,0.19917994]
[1641357582884,0.6037856,46382.0,46380.0,0.19917994]
[1641357583085,0.6537856,46382.0,46380.0,0.19917994]
[1641357583283,0.03,46381.0,46380.0,0.20217994]
[1641357584584,0.6537856,46382.0,46380.0,0.19917994]
[1641357584785,0.6037856,46382.0,46380.0,0.19917994]
[1641357585183,0.10671628,46382.0,46380.0,0.19917994]
[1641357585434,0.12871628,46382.0,46380.0,0.20217994]
[1641357586636,0.10671628,46382.0,46380.0,0.19917994]
[1641357586935,0.16063628,46382.0,46380.0,0.19917994]
[1641357587335,0.18263628,46382.0,46380.0,0.20217994]
[1641357588137,0.12871628,46382.0,46380.0,0.20217994]
[1641357588637,0.10671628,46382.0,46380.0,0.19917994]
[1641357589085,0.10671628,46382.0,46381.0,0.5740879]
[1641357589286,0.03179435,46382.0,46381.0,0.5740879]
[1641357590785,0.00279435,46382.0,46381.0,0.5740879]
[1641357590984,0.00279435,46382.0,46381.0,1.00138143]
[1641357591185,0.00279435,46382.0,46381.0,0.99684159]
[1641357591390,0.01279435,46382.0,46381.0,1.00484159]
[1641357591786,0.01279435,46382.0,46381.0,0.783039]
[1641357591986,0.01279435,46382.0,46381.0,1.00507071]
[1641357592388,0.01279435,46382.0,46381.0,0.783039]
[1641357592587,0.00279435,46382.0,46381.0,0.775039]
[1641357593432,0.01179435,46382.0,46381.0,0.784039]
[1641357594732,0.00279435,46382.0,46381.0,0.775039]
[1641357594934,0.00279435,46382.0,46381.0,0.99713437]
[1641357595433,0.02179435,46382.0,46381.0,1.00713437]
[1641357596693,0.02179435,46382.0,46381.0,0.99713437]
[1641357596694,0.00279435,46382.0,46381.0,0.99713437]
[1641357596893,0.00279435,46382.0,46381.0,0.99838347]
[1641357597089,0.00279435,46382.0,46381.0,1.04658347]
[1641357597489,0.00279435,46382.0,46381.0,0.8434881]
[1641357597690,0.00279435,46382.0,46381.0,1.5734881]
[1641357598591,0.00279435,46382.0,46381.0,1.5544881]
[1641357599195,0.00279435,46382.0,46381.0,0.8244881]
[1641357599388,0.00279435,46382.0,46381.0,1.09993806]
[1641357599790,0.00279435,46382.0,46381.0,1.56993806]
[1641357600632,0.00279435,46382.0,46381.0,1.54893806]
[1641357601332,0.00279435,46382.0,46381.0,1.56793806]
[1641357602133,0.00279435,46382.0,46381.0,2.70793806]
[1641357602730,0.00279435,46382.0,46381.0,2.68893806]
[1641357603531,0.00279435,46382.0,46381.0,2.71093806]
[1641357604783,0.00279435,46382.0,46381.0,2.68893806]
[1641357604983,0.00279435,46382.0,46381.0,2.88893806]
[1641357605388,0.00279435,46382.0,46381.0,2.90793806]
[1641357606685,0.00279435,46382.0,46381.0,2.88893806]
[1641357607385,0.00279435,46382.0,46381.0,2.91693806]
[1641357608038,0.00279435,46382.0,46381.0,2.99535806]
[1641357608436,0.00279435,46382.0,46381.0,2.79535806]
[1641357608635,0.00279435,46382.0,46381.0,2.96735806]
[1641357609137,0.00279435,46382.0,46381.0,3.01735806]
[1641357609438,0.00279435,46382.0,46381.0,3.04135806]
[1641357609835,0.00279435,46382.0,46381.0,3.09135806]
[1641357610238,0.05389283,46404.0,46392.0,0.053893]
[1641357610442,0.0031065,46408.0,46402.0,0.00126946]
[1641357610640,0.0031065,46408.0,46403.0,0.0482]
[1641357611241,0.0031065,46408.0,46398.0,0.3047]
[1641357611242,0.32182626,46404.0,46398.0,0.3047]
[1641357611456,0.32182626,46404.0,46403.0,0.004]
[1641357611688,1.02489409,46406.0,46403.0,0.004]
[1641357611888,0.0031065,46408.0,46403.0,0.004]
[1641357612094,0.0031065,46408.0,46405.0,0.00125303]
[1641357612487,0.107771,46419.0,46405.0,0.00125303]
[1641357612689,0.2938391,46413.0,46405.0,0.00125303]
[1641357612888,0.2938391,46413.0,46405.0,0.22125303]
[1641357612889,0.30140011,46407.0,46405.0,0.22125303]
[1641357613489,0.30140011,46407.0,46405.0,0.226]
[1641357613890,0.05389016,46408.0,46405.0,0.226]
[1641357614087,0.60343055,46410.0,46405.0,0.226]
[1641357614489,0.23609329,46410.0,46405.0,0.226]
[1641357614694,0.23609329,46410.0,46405.0,0.22]
[1641357614889,0.2997998,46409.0,46405.0,0.22]
[1641357615091,0.05389003,46408.0,46405.0,0.22]
[1641357615533,0.05389003,46408.0,46405.0,0.224]
[1641357615734,0.37385783,46407.0,46405.0,0.224]
[1641357616734,0.37385783,46407.0,46405.0,0.22]
[1641357616937,0.84857514,46406.0,46405.0,0.22]
[1641357617137,1.30361414,46406.0,46405.0,0.22]
[1641357617341,1.35361414,46406.0,46405.0,0.22]
[1641357617536,1.35361414,46406.0,46405.0,0.222]
[1641357618038,1.40361414,46406.0,46405.0,0.222]
[1641357618639,1.40361414,46406.0,46405.0,0.22]
[1641357620088,1.45181414,46406.0,46405.0,0.22]
[1641357620289,1.45181414,46406.0,46405.0,0.22069589]
[1641357621289,0.503239,46406.0,46405.0,0.22069589]
[1641357621590,0.410239,46406.0,46405.0,0.22769589]
[1641357623231,0.403239,46406.0,46405.0,0.22069589]
[1641357623434,0.435239,46406.0,46405.0,0.22269589]
[1641357624236,0.435239,46406.0,46405.0,0.47154661]
[1641357624237,0.387039,46406.0,46405.0,0.47154661]
[1641357624435,0.032,46406.0,46405.0,0.47280632]
[1641357624634,0.032,46406.0,46405.0,0.5769946]
[1641357624834,0.05388009,46416.0,46405.0,0.5769946]
[1641357625039,0.05388009,46416.0,46412.0,0.00126525]
[1641357626037,0.75830704,46417.0,46412.0,0.00126525]
[1641357626038,0.43877451,46417.0,46412.0,0.00126525]
[1641357626236,0.38489605,46417.0,46412.0,0.00126525]
[1641357627292,0.63733793,46417.0,46412.0,0.00126525]
[1641357627491,0.63833793,46417.0,46412.0,0.01226525]
[1641357628292,0.001,46417.0,46412.0,0.01226525]
[1641357628692,0.0048,46421.0,46412.0,0.00126525]
[1641357629193,0.0048,46421.0,46414.0,0.053874]
[1641357629393,0.25708451,46420.0,46414.0,0.053874]
[1641357629995,0.4465562,46415.0,46414.0,0.053874]
[1641357630198,0.4465562,46415.0,46414.0,0.05456989]
[1641357630430,0.4465562,46415.0,46414.0,0.00069589]
[1641357631429,0.4975562,46415.0,46414.0,0.00969589]
[1641357633432,0.4975562,46415.0,46414.0,0.01869589]
[1641357633433,0.5495562,46415.0,46414.0,0.01869589]
[1641357634084,0.5495562,46415.0,46414.0,0.00969589]
[1641357634383,0.4465562,46415.0,46414.0,0.00069589]
[1641357635583,0.4985562,46415.0,46414.0,0.00969589]
[1641357636683,0.4465562,46415.0,46414.0,0.00069589]
[1641357637485,0.5005562,46415.0,46414.0,0.00869589]
[1641357638632,0.6005562,46415.0,46414.0,0.00869589]
[1641357638833,0.9015952,46415.0,46414.0,0.00069589]
[1641357639034,0.9515952,46415.0,46414.0,0.00069589]
[1641357639435,0.9625952,46415.0,46414.0,0.00869589]
[1641357640638,0.9625952,46415.0,46414.0,0.00069589]
[1641357640836,0.9515952,46415.0,46414.0,0.00069589]
[1641357641236,1.20571692,46415.0,46414.0,0.00069589]
[1641357641434,1.21871692,46415.0,46414.0,0.00069589]
[1641357641880,1.26691692,46415.0,46414.0,0.00069589]
[1641357642679,1.25391692,46415.0,46414.0,0.00069589]
[1641357643480,1.26591692,46415.0,46414.0,0.00069589]
[1641357645433,1.0117952,46415.0,46414.0,0.00069589]
[1641357646834,0.9997952,46415.0,46414.0,0.00069589]
[1641357647233,0.8497952,46415.0,46414.0,0.00069589]
[1641357647435,1.19236026,46415.0,46414.0,0.00069589]
[1641357648737,1.18036026,46415.0,46414.0,0.00069589]
[1641357649481,1.19436026,46415.0,46414.0,0.00069589]
[1641357649981,1.24436026,46415.0,46414.0,0.00069589]
[1641357650181,1.09436026,46415.0,46414.0,0.00069589]
[1641357650382,1.24436026,46415.0,46414.0,0.00069589]
[1641357650783,1.23036026,46415.0,46414.0,0.00069589]
[1641357650985,1.18036026,46415.0,46414.0,0.00069589]
[1641357651583,1.19336026,46415.0,46414.0,0.00069589]
[1641357651782,1.24336026,46415.0,46414.0,0.00069589]
[1641357652827,1.23036026,46415.0,46414.0,0.00069589]
[1641357653429,1.24336026,46415.0,46414.0,0.00069589]
[1641357653629,1.29336026,46415.0,46414.0,0.00069589]
[1641357654832,1.28036026,46415.0,46414.0,0.00069589]
[1641357655428,1.29236026,46415.0,46414.0,0.00069589]
[1641357656885,1.28036026,46415.0,46414.0,0.00069589]
[1641357657581,1.29236026,46415.0,46414.0,0.00069589]
[1641357660832,1.28036026,46415.0,46414.0,0.00069589]
[1641357661534,1.29136026,46415.0,46414.0,0.00069589]
[1641357662733,1.28036026,46415.0,46414.0,0.00069589]
[1641357663533,1.29436026,46415.0,46414.0,0.00069589]
[1641357665493,1.30736026,46415.0,46414.0,0.00069589]
[1641357667193,1.28036026,46415.0,46414.0,0.00069589]
[1641357667591,1.29336026,46415.0,46414.0,0.00069589]
[1641357668831,2.23019729,46415.0,46414.0,0.00069589]
[1641357669634,2.24119729,46415.0,46414.0,0.00069589]
[1641357670032,2.19119729,46415.0,46414.0,0.00069589]
[1641357670934,2.18019729,46415.0,46414.0,0.00069589]
[1641357671134,2.23019729,46415.0,46414.0,0.00069589]
[1641357671434,1.28036026,46415.0,46414.0,0.00069589]
[1641357671681,1.29136026,46415.0,46414.0,0.00069589]
[1641357672081,1.29136026,46415.0,46405.0,0.21769589]
[1641357672082,0.74579871,46406.0,46405.0,0.21769589]
[1641357672285,0.74579871,46406.0,46405.0,0.21469589]
[1641357672681,0.42686235,46406.0,46405.0,0.21169589]
[1641357673083,0.42686235,46406.0,46405.0,0.20869589]
[1641357673381,0.42686235,46406.0,46405.0,0.20569589]
[1641357673584,0.43186235,46406.0,46405.0,0.22769589]
[1641357673983,0.43186235,46406.0,46405.0,0.22469589]
[1641357674483,0.43186235,46406.0,46405.0,0.21869589]
[1641357674683,0.43186235,46406.0,46405.0,0.21569589]
[1641357674887,0.42686235,46406.0,46405.0,0.18769589]
[1641357675083,0.42686235,46406.0,46405.0,0.18469589]
[1641357675330,0.42686235,46406.0,46405.0,0.18169589]
[1641357675534,0.43386235,46406.0,46405.0,0.20769589]
[1641357675731,0.43386235,46406.0,46405.0,0.19969589]
[1641357675931,0.48386235,46406.0,46405.0,0.19669589]
[1641357676331,0.83890135,46406.0,46405.0,0.19369589]
[1641357676731,0.83890135,46406.0,46405.0,0.19069589]
[1641357676931,0.83190135,46406.0,46405.0,0.16469589]
[1641357677134,0.83190135,46406.0,46405.0,0.16169589]
[1641357677332,0.83190135,46406.0,46405.0,0.15869589]
[1641357677535,0.83390135,46406.0,46405.0,0.17769589]
[1641357677733,0.83390135,46406.0,46405.0,0.17469589]
[1641357677933,0.83390135,46406.0,46405.0,0.17169589]
[1641357678133,0.47886235,46406.0,46405.0,0.16869589]
[1641357678334,0.47886235,46406.0,46405.0,0.16269589]
[1641357678836,0.83190135,46406.0,46405.0,0.13769589]
[1641357679485,0.84190135,46406.0,46405.0,0.16569589]
[1641357679883,0.79190135,46406.0,46405.0,0.16569589]
[1641357680782,0.42686235,46406.0,46405.0,0.13769589]
[1641357681185,0.42686235,46406.0,46405.0,0.13739589]
[1641357681383,0.42686235,46406.0,46405.0,0.13709589]
[1641357681384,0.37296635,46406.0,46405.0,0.13709589]
[1641357681587,0.37596635,46406.0,46405.0,0.16079589]
[1641357681783,0.37596635,46406.0,46405.0,0.16049589]
[1641357681984,0.37596635,46406.0,46405.0,0.15989589]
[1641357682586,0.37596635,46406.0,46405.0,0.16122259]
[1641357682864,0.37596635,46406.0,46405.0,0.13722259]
[1641357682865,0.37296635,46406.0,46405.0,0.13722259]
[1641357683662,0.37896635,46406.0,46405.0,0.15322259]
[1641357684864,0.37296635,46406.0,46405.0,0.13722259]
[1641357685565,0.37296635,46406.0,46405.0,0.15022259]
[1641357687495,0.37296635,46406.0,46405.0,0.15122259]
[1641357688393,0.79296635,46406.0,46405.0,0.15122259]
[1641357689495,0.42,46406.0,46405.0,0.38642162]
[1641357689694,0.42,46406.0,46405.0,2.20446062]
[1641357689895,0.42,46406.0,46405.0,1.95652442]
[1641357690736,0.42,46406.0,46405.0,1.64652442]
[1641357690937,0.42,46406.0,46405.0,1.63352442]
[1641357691545,0.42,46406.0,46405.0,0.51752442]
[1641357691738,0.42,46406.0,46405.0,0.76531338]
[1641357692939,0.42,46406.0,46405.0,0.74131338]
[1641357693539,0.42,46406.0,46405.0,0.77731338]
[1641357694783,0.42,46406.0,46405.0,0.74131338]
[1641357695585,0.42,46406.0,46405.0,0.77731338]
[1641357695986,0.42,46406.0,46405.0,0.52826159]
[1641357696186,0.42,46406.0,46405.0,0.17322259]
[1641357696785,0.42,46406.0,46405.0,0.13722259]
[1641357697589,0.42,46406.0,46405.0,0.19022259]
[1641357698733,0.42,46406.0,46405.0,0.13722259]
[1641357699531,0.42,46406.0,46405.0,0.18622259]
[1641357700938,0.42,46406.0,46405.0,0.13722259]
[1641357701588,0.42,46406.0,46405.0,0.18822259]
[1641357702892,0.42,46406.0,46405.0,0.13722259]
[1641357703693,0.42,46406.0,46405.0,0.18622259]
[1641357704895,0.42,46406.0,46405.0,0.13722259]
[1641357705740,0.42,46406.0,46405.0,0.52026159]
[1641357706940,0.42,46406.0,46405.0,0.49226159]
[1641357707641,0.42,46406.0,46405.0,0.53226159]
[1641357708940,0.42,46406.0,46405.0,0.49226159]
[1641357709585,0.42,46406.0,46405.0,0.52826159]
[1641357710986,0.42,46406.0,46405.0,0.49226159]
[1641357711388,0.42,46406.0,46405.0,0.72389518]
[1641357711590,0.42,46406.0,46405.0,0.75289518]
[1641357711787,0.42,46406.0,46405.0,0.52126159]
[1641357712187,0.42,46406.0,46405.0,1.71126159]
[1641357712588,0.42,46406.0,46405.0,0.67901259]
[1641357712840,0.42,46406.0,46405.0,0.60001259]
[1641357713040,0.42,46406.0,46405.0,1.74001259]